fUST/lending_fUST_20250731
["ID","MTS","AMOUNT","RATE_DAILY","PERIOD"]
[376390698,1753961445281,-460.0,0.00019178,2]
[376390699,1753961445291,-460.0,0.00019178,2]
[376390700,1753961445301,-460.0,0.00019178,2]
[376390701,1753961445310,-460.0,0.00019178,2]
[376390702,1753961445320,-460.0,0.00019178,2]
[376390703,1753961445329,-460.0,0.00019178,2]
[376390704,1753961445339,-460.0,0.00019178,2]
[376390705,1753961445348,-460.0,0.00019178,2]
[376390706,1753961445357,-460.0,0.00019178,2]
[376390707,1753961445367,-460.0,0.00019178,2]
[376390708,1753961445376,-460.0,0.00019178,2]
[376390709,1753961445386,-460.0,0.00019178,2]
[376390710,1753961445396,-531.37720024,0.00019178,2]
[376390711,1753961445406,-460.0,0.00019178,2]
[376390712,1753961445415,-460.0,0.00019178,2]
[376390713,1753961445425,-227.23069924,0.00019178,2]
[376390714,1753961445434,-460.0,0.00019178,2]
[376390715,1753961445443,-460.0,0.00019178,2]
[376390716,1753961445453,-460.0,0.00019178,2]
[376390717,1753961445462,-229.52,0.00019178,2]
[376390718,1753961445472,-460.0,0.00019178,2]
[376390719,1753961445481,-460.0,0.00019178,2]
[376390720,1753961445491,-460.0,0.00019178,2]
[376390721,1753961445500,-479.9,0.00019178,2]
[376390722,1753961445510,-460.0,0.00019178,2]
[376390723,1753961445519,-460.0,0.00019178,2]
[376390724,1753961445528,-460.0,0.00019178,2]
[376390725,1753961445538,-460.0,0.00019178,2]
[376390726,1753961445548,-460.0,0.00019178,2]
[376390727,1753961445557,-460.0,0.00019178,2]
[376390728,1753961445566,-460.0,0.00019178,2]
[376390729,1753961445575,-460.0,0.00019178,2]
[376390730,1753961445585,-460.0,0.00019178,2]
[376390731,1753961445594,-871.78,0.00019178,2]
[376390732,1753961445605,-460.0,0.00019178,2]
[376390733,1753961445615,-460.0,0.00019178,2]
[376390734,1753961445625,-460.0,0.00019178,2]
[376390735,1753961445634,-460.0,0.00019178,2]
[376390736,1753961445644,-460.0,0.00019178,2]
[376390737,1753961445654,-897.75,0.00019178,2]
[376390738,1753961445663,-460.0,0.00019178,2]
[376390739,1753961445673,-460.0,0.00019178,2]
[376390740,1753961445683,-460.0,0.00019178,2]
[376390741,1753961445693,-460.0,0.00019178,2]
[376390742,1753961445712,-1384.03,0.00019178,2]
[376390743,1753961445724,-460.0,0.00019178,2]
[376390744,1753961445733,-460.0,0.00019178,2]
[376390745,1753961445743,-460.0,0.00019178,2]
[376390746,1753961445754,-460.0,0.00019178,2]
[376390747,1753961445764,-460.0,0.00019178,2]
[376390748,1753961445773,-460.0,0.00019178,2]
[376390749,1753961445783,-460.0,0.00019178,2]
[376390750,1753961445792,-1050.59,0.00019178,2]
[376390751,1753961445802,-460.0,0.00019178,2]
[376390752,1753961445812,-460.0,0.00019178,2]
[376390753,1753961445821,-460.0,0.00019178,2]
[376390754,1753961445831,-460.0,0.00019178,2]
[376390755,1753961445841,-460.0,0.00019178,2]
[376390756,1753961445850,-460.0,0.00019178,2]
[376390757,1753961445860,-460.0,0.00019178,2]
[376390758,1753961445870,-460.0,0.00019178,2]
[376390759,1753961445880,-460.0,0.00019178,2]
[376390760,1753961445890,-460.0,0.00019178,2]
[376390762,1753961445899,-460.0,0.00019178,2]
[376390764,1753961445909,-460.0,0.00019178,2]
[376390765,1753961445919,-460.0,0.00019178,2]
[376390766,1753961445928,-252.4977696,0.00019178,2]
[376390767,1753961445937,-460.0,0.00019178,2]
[376390768,1753961445947,-460.0,0.00019178,2]
[376390770,1753961445956,-460.0,0.00019178,2]
[376390771,1753961445966,-460.0,0.00019178,2]
[376390772,1753961445975,-460.0,0.00019178,2]
[376390773,1753961445985,-460.0,0.00019178,2]
[376390774,1753961445995,-466.8775047,0.00019178,2]
[376390775,1753961446005,-460.0,0.00019178,2]
[376390776,1753961446014,-852.45,0.00019178,2]
[376390777,1753961446024,-460.0,0.00019178,2]
[376390778,1753961446034,-1010.67,0.00019178,2]
[376390779,1753961446044,-460.0,0.00019178,2]
[376390780,1753961446054,-460.0,0.00019178,2]
[376390782,1753961446064,-460.0,0.00019178,2]
[376390786,1753961446074,-460.0,0.00019178,2]
[376390787,1753961446222,-460.0,0.00019178,2]
[376390789,1753961446232,-460.0,0.00019178,2]
[376390790,1753961446242,-460.0,0.00019178,2]
[376390791,1753961446253,-460.0,0.00019178,2]
[376390792,1753961446263,-460.0,0.00019178,2]
[376390793,1753961446273,-922.82,0.00019178,2]
[376390794,1753961446282,-460.0,0.00019178,2]
[376390795,1753961446292,-460.0,0.00019178,2]
[376390796,1753961446302,-460.0,0.00019178,2]
[376390797,1753961446311,-460.0,0.00019178,2]
[376390798,1753961446320,-460.0,0.00019178,2]
[376390799,1753961446329,-460.0,0.00019178,2]
[376390801,1753961446339,-460.0,0.00019178,2]
[376390802,1753961446347,-460.0,0.00019178,2]
[376390803,1753961446357,-460.0,0.00019178,2]
[376390804,1753961446368,-460.0,0.00019178,2]
[376390805,1753961446377,-460.0,0.00019178,2]
[376390806,1753961446387,-460.0,0.00019178,2]
[376390807,1753961446396,-460.0,0.00019178,2]
[376390808,1753961446405,-460.0,0.00019178,2]
[376390809,1753961446415,-460.0,0.00019178,2]
[376390810,1753961446424,-460.0,0.00019178,2]
[376390811,1753961446433,-460.0,0.00019178,2]
[376390812,1753961446443,-460.0,0.00019178,2]
[376390813,1753961446452,-460.0,0.00019178,2]
[376390814,1753961446461,-460.0,0.00019178,2]
[376390815,1753961446470,-4767.45,0.00019178,2]
[376390816,1753961446479,-460.0,0.00019178,2]
[376390817,1753961446488,-460.0,0.00019178,2]
[376390818,1753961446497,-460.0,0.00019178,2]
[376390819,1753961446507,-460.0,0.00019178,2]
[376390820,1753961446516,-645.23,0.00019178,2]
[376390821,1753961446526,-460.0,0.00019178,2]
[376390822,1753961446536,-460.0,0.00019178,2]
[376390823,1753961446545,-460.0,0.00019178,2]
[376390824,1753961446554,-460.0,0.00019178,2]
[376390825,1753961446563,-575.78,0.00019178,2]
[376390826,1753961446573,-460.0,0.00019178,2]
[376390827,1753961446582,-460.0,0.00019178,2]
[376390828,1753961446591,-460.0,0.00019178,2]
[376390829,1753961446600,-460.0,0.00019178,2]
[376390830,1753961446609,-1688.82,0.00019178,2]
[376390831,1753961446618,-460.0,0.00019178,2]
[376390832,1753961446627,-1016.47,0.00019178,2]
[376390834,1753961446636,-460.0,0.00019178,2]
[376390835,1753961446645,-460.0,0.00019178,2]
[376390836,1753961446654,-460.0,0.00019178,2]
[376390837,1753961446664,-460.0,0.00019178,2]
[376390838,1753961446673,-460.0,0.00019178,2]
[376390839,1753961446682,-460.0,0.00019178,2]
[376390840,1753961446691,-495.08225442,0.00019178,2]
[376390841,1753961446701,-460.0,0.00019178,2]
[376390842,1753961446711,-460.0,0.00019178,2]
[376390843,1753961446720,-460.0,0.00019178,2]
[376390844,1753961446730,-460.0,0.00019178,2]
[376390845,1753961446740,-460.0,0.00019178,2]
[376390846,1753961446749,-460.0,0.00019178,2]
[376390847,1753961446759,-460.0,0.00019178,2]
[376390848,1753961446768,-460.0,0.00019178,2]
[376390849,1753961446778,-460.0,0.00019178,2]
[376390850,1753961446787,-460.0,0.00019178,2]
[376390851,1753961446796,-460.0,0.00019178,2]
[376390852,1753961446805,-460.0,0.00019178,2]
[376390853,1753961446814,-460.0,0.00019178,2]
[376390854,1753961446824,-460.0,0.00019178,2]
[376390855,1753961446833,-460.0,0.00019178,2]
[376390856,1753961446842,-1333.26,0.00019178,2]
[376390857,1753961446852,-460.0,0.00019178,2]
[376390858,1753961446861,-460.0,0.00019178,2]
[376390859,1753961446870,-460.0,0.00019178,2]
[376390860,1753961446880,-1128.44,0.00019178,2]
[376390861,1753961446889,-460.0,0.00019178,2]
[376390862,1753961446898,-1682.83,0.00019178,2]
[376390863,1753961446907,-460.0,0.00019178,2]
[376390864,1753961446917,-460.0,0.00019178,2]
[376390865,1753961446927,-460.0,0.00019178,2]
[376390866,1753961446937,-460.0,0.00019178,2]
[376390867,1753961446947,-460.0,0.00019178,2]
[376390868,1753961446957,-460.0,0.00019178,2]
[376390869,1753961446966,-460.0,0.00019178,2]
[376390870,1753961446976,-500.0,0.00019178,2]
[376390871,1753961446986,-181.930651,0.00019178,2]
[376390872,1753961446996,-1487.24850132,0.00019329,2]
[376390873,1753961447007,-200.0,0.00019348,15]
[376390874,1753961447017,-200.0,0.00019348,15]
[376390875,1753961447027,-200.0,0.00019348,15]
[376390876,1753961447038,-200.0,0.00019348,15]
[376390877,1753961447048,-17894.90166324,0.00019352,2]
[376390878,1753961447058,-1405.55302747,0.00019452,2]
[376390879,1753961447067,-460.0,0.00019452,2]
[376390880,1753961447076,-460.0,0.00019452,2]
[376390881,1753961447086,-538.14323005,0.00019452,2]
[376390882,1753961447096,-460.0,0.00019452,2]
[376390883,1753961447105,-460.0,0.00019452,2]
[376390884,1753961447114,-460.0,0.00019452,2]
[376390885,1753961447123,-460.0,0.00019452,2]
[376390886,1753961447133,-460.0,0.00019452,2]
[376390887,1753961447142,-460.0,0.00019452,2]
[376390888,1753961447152,-460.0,0.00019452,2]
[376390889,1753961447162,-460.0,0.00019452,2]
[376390890,1753961447173,-463.5649056,0.00019452,2]
[376390891,1753961447182,-460.0,0.00019452,2]
[376390892,1753961447192,-460.0,0.00019452,2]
[376390893,1753961447202,-460.0,0.00019452,2]
[376390894,1753961447211,-329.06143432,0.00019452,2]
[376390895,1753961447221,-460.0,0.00019452,2]
[376390896,1753961447230,-460.0,0.00019452,2]
[376390897,1753961447240,-161.27564107,0.00019452,2]
[376390898,1753961447250,-460.0,0.00019452,2]
[376390899,1753961447259,-460.0,0.00019452,2]
[376390900,1753961447268,-460.0,0.00019452,2]
[376390901,1753961447277,-460.0,0.00019452,2]
[376390902,1753961447286,-463.30973023,0.00019452,2]
[376390903,1753961447295,-378.03216748,0.00019452,2]
[376390904,1753961447305,-460.0,0.00019452,2]
[376390905,1753961447314,-460.0,0.00019452,2]
[376390906,1753961447323,-460.0,0.00019452,2]
[376390907,1753961447332,-460.0,0.00019452,2]
[376390908,1753961447341,-463.31614608,0.00019452,2]
[376390909,1753961447351,-460.0,0.00019452,2]
[376390910,1753961447360,-460.0,0.00019452,2]
[376390911,1753961447370,-460.0,0.00019452,2]
[376390912,1753961447379,-460.0,0.00019452,2]
[376390913,1753961447389,-460.0,0.00019452,2]
[376390914,1753961447398,-460.0,0.00019452,2]
[376390915,1753961447408,-460.0,0.00019452,2]
[376390916,1753961447419,-460.0,0.00019452,2]
[376390917,1753961447428,-460.0,0.00019452,2]
[376390918,1753961447438,-460.0,0.00019452,2]
[376390919,1753961447447,-57.27206462,0.00019452,2]
[376390920,1753961447568,-402.72793538,0.00019452,2]
[376390921,1753961447578,-460.0,0.00019452,2]
[376390922,1753961447587,-472.17983432,0.00019452,2]
[376390923,1753961447596,-460.0,0.00019452,2]
[376390924,1753961447605,-460.0,0.00019452,2]
[376390925,1753961447614,-94.3298303,0.00019452,2]
[376390926,1753961447626,-365.6701697,0.00019452,2]
[376390927,1753961447635,-460.0,0.00019452,2]
[376390928,1753961447644,-460.0,0.00019452,2]
[376390929,1753961447653,-460.0,0.00019452,2]
[376390930,1753961447662,-460.0,0.00019452,2]
[376390931,1753961447670,-460.0,0.00019452,2]
[376390932,1753961447679,-460.0,0.00019452,2]
[376390933,1753961447690,-460.0,0.00019452,2]
[376390934,1753961447699,-460.0,0.00019452,2]
[376390935,1753961447708,-460.0,0.00019452,2]
[376390936,1753961447718,-460.0,0.00019452,2]
[376390937,1753961447727,-460.0,0.00019452,2]
[376390938,1753961447737,-460.0,0.00019452,2]
[376390939,1753961447746,-460.0,0.00019452,2]
[376390940,1753961447756,-460.0,0.00019452,2]
[376390941,1753961447765,-460.0,0.00019452,2]
[376390942,1753961447774,-460.0,0.00019452,2]
[376390943,1753961447783,-144.28961662,0.00019452,2]
[376390944,1753961447991,-2213.58994235,0.0001915,2]
[376390945,1753961448001,-315.71038338,0.00019452,2]
[376390946,1753961448011,-460.0,0.00019452,2]
[376390947,1753961448021,-460.0,0.00019452,2]
[376390948,1753961448031,-460.0,0.00019452,2]
[376390949,1753961448040,-460.0,0.00019452,2]
[376390950,1753961448050,-460.0,0.00019452,2]
[376390951,1753961448060,-460.0,0.00019452,2]
[376390952,1753961448069,-460.0,0.00019452,2]
[376390953,1753961448079,-460.0,0.00019452,2]
[376390954,1753961448088,-460.0,0.00019452,2]
[376390955,1753961448098,-460.0,0.00019452,2]
[376390956,1753961448108,-460.0,0.00019452,2]
[376390957,1753961448117,-460.0,0.00019452,2]
[376390958,1753961448127,-460.0,0.00019452,2]
[376390959,1753961448136,-460.0,0.00019452,2]
[376390960,1753961448145,-460.0,0.00019452,2]
[376390961,1753961448157,-460.0,0.00019452,2]
[376390962,1753961448168,-460.0,0.00019452,2]
[376390963,1753961448177,-460.0,0.00019452,2]
[376390964,1753961448187,-460.0,0.00019452,2]
[376390965,1753961448197,-460.0,0.00019452,2]
[376390966,1753961448206,-127.60521842,0.00019452,2]
[376390967,1753961448218,-332.39478158,0.00019452,2]
[376390968,1753961448228,-348.51279181,0.00019452,2]
[376390969,1753961448244,-111.48720819,0.00019452,2]
[376390970,1753961448253,-460.0,0.00019452,2]
[376390971,1753961448263,-460.0,0.00019452,2]
[376390972,1753961448273,-460.0,0.00019452,2]
[376390973,1753961448282,-605.94184777,0.00019452,2]
[376390974,1753961448291,-460.0,0.00019452,2]
[376390975,1753961448300,-460.0,0.00019452,2]
[376390976,1753961448309,-460.0,0.00019452,2]
[376390977,1753961448319,-460.0,0.00019452,2]
[376390978,1753961448328,-460.0,0.00019452,2]
[376390979,1753961448337,-460.0,0.00019452,2]
[376390980,1753961448347,-460.0,0.00019452,2]
[376390981,1753961448355,-460.0,0.00019452,2]
[376390982,1753961448365,-124.14243616,0.00019452,2]
[376390983,1753961448377,-335.85756384,0.00019452,2]
[376390984,1753961448386,-460.0,0.00019452,2]
[376390985,1753961448395,-460.0,0.00019452,2]
[376390986,1753961448404,-460.0,0.00019452,2]
[376390987,1753961448413,-460.0,0.00019452,2]
[376390988,1753961448422,-460.0,0.00019452,2]
[376390989,1753961448431,-460.0,0.00019452,2]
[376390990,1753961448441,-460.0,0.00019452,2]
[376390991,1753961448450,-460.0,0.00019452,2]
[376390992,1753961448459,-460.0,0.00019452,2]
[376390993,1753961448469,-460.0,0.00019452,2]
[376390994,1753961448480,-517.54,0.00019452,2]
[376390995,1753961448490,-460.0,0.00019452,2]
[376390996,1753961448499,-460.0,0.00019452,2]
[376390997,1753961448509,-460.0,0.00019452,2]
[376390998,1753961448519,-460.0,0.00019452,2]
[376390999,1753961448529,-460.0,0.00019452,2]
[376391000,1753961448641,-460.0,0.00019452,2]
[376391001,1753961448650,-460.0,0.00019452,2]
[376391002,1753961448660,-460.0,0.00019452,2]
[376391003,1753961448669,-460.0,0.00019452,2]
[376391004,1753961448678,-460.0,0.00019452,2]
[376391005,1753961448687,-460.0,0.00019452,2]
[376391006,1753961448697,-460.0,0.00019452,2]
[376391007,1753961448706,-460.0,0.00019452,2]
[376391008,1753961448715,-460.0,0.00019452,2]
[376391009,1753961448724,-460.0,0.00019452,2]
[376391010,1753961448733,-460.0,0.00019452,2]
[376391011,1753961448743,-460.0,0.00019452,2]
[376391012,1753961448752,-464.10937476,0.00019452,2]
[376391013,1753961448762,-460.0,0.00019452,2]
[376391014,1753961448771,-460.0,0.00019452,2]
[376391015,1753961448780,-460.0,0.00019452,2]
[376391016,1753961448789,-462.31238432,0.00019452,2]
[376391017,1753961448801,-479.9,0.00019452,2]
[376391018,1753961448810,-460.0,0.00019452,2]
[376391019,1753961448819,-460.0,0.00019452,2]
[376391020,1753961448828,-460.0,0.00019452,2]
[376391021,1753961448837,-252.24233591,0.00019452,2]
[376391022,1753961449544,-207.75766409,0.00019452,2]
[376391023,1753961449553,-460.0,0.00019452,2]
[376391024,1753961449562,-460.0,0.00019452,2]
[376391025,1753961449571,-460.0,0.00019452,2]
[376391026,1753961449580,-460.0,0.00019452,2]
[376391027,1753961449590,-460.0,0.00019452,2]
[376391028,1753961449599,-871.78,0.00019452,2]
[376391029,1753961449608,-460.0,0.00019452,2]
[376391030,1753961449617,-460.0,0.00019452,2]
[376391031,1753961449626,-320.51072918,0.00019452,2]
[376391035,1753961631687,5696.81989366,0.0001901,6]
[376391037,1753961683639,1133.66797182,0.00018774,2]
[376391038,1753961698653,161.0,0.000188,2]
[376391039,1753961699654,92.32909995,0.000188,2]
[376391040,1753961699678,68.67090005,0.000188,2]
[376391041,1753961703202,1430.21744503,0.00018511,2]
[376391042,1753961719816,-300.0,0.00018873,2]
[376391043,1753961719838,-300.0,0.00018873,2]
[376391044,1753961719859,-1200.0,0.00018873,2]
[376391045,1753961719880,-3200.0,0.00018874,2]
[376391046,1753961741305,161.43190931,0.00018774,2]
[376391047,1753961744369,8339.67974561,0.00018444,2]
[376391048,1753961744391,1660.32025439,0.00018444,2]
[376391049,1753961745222,-7000.0,0.00018874,2]
[376391050,1753961780566,8339.67974561,0.00018083,2]
[376391051,1753961780602,10000.0,0.00018083,2]
[376391052,1753961780626,6560.32025439,0.00018083,2]
[376391053,1753961781544,1328.15396541,0.000188,2]
[376391055,1753961864544,2111.5257802,0.000188,2]
[376391056,1753961864567,817.55317646,0.000188,2]
[376391057,1753961873927,991.95947536,0.00018774,2]
[376391058,1753961895249,440.560754,0.00017881,2]
[376391059,1753962045553,260.210687,0.00013699,2]
[376391062,1753962064371,867.96454094,0.00018774,2]
[376391063,1753962122006,1062.52317236,0.000188,2]
[376391064,1753962124960,1952.71930444,0.000188,2]
[376391065,1753962254970,759.46897327,0.00018774,2]
[376391066,1753962385107,2847.03991617,0.000188,2]
[376391067,1753962385137,75.93579407,0.000188,2]
[376391069,1753962408483,500.0,0.00026,120]
[376391070,1753962444929,664.53535162,0.00018772,2]
[376391071,1753962466383,1882.07915956,0.000188,2]
[376391093,1753962632882,-500.0,0.00018864,2]
[376391094,1753962632892,-500.0,0.00018864,2]
[376391095,1753962632901,-500.0,0.00018864,2]
[376391096,1753962632910,-500.0,0.00018864,2]
[376391097,1753962632919,-500.0,0.00018864,2]
[376391098,1753962632930,-500.0,0.00018864,2]
[376391099,1753962632939,-500.0,0.00018864,2]
[376391100,1753962632949,-500.0,0.00018864,2]
[376391101,1753962632958,-500.0,0.00018864,2]
[376391102,1753962632970,-500.0,0.00018864,2]
[376391103,1753962632980,-500.0,0.00018864,2]
[376391104,1753962632990,-500.0,0.00018864,2]
[376391105,1753962633001,-635.03781758,0.00018864,2]
[376391106,1753962633010,-160.0,0.0001887,2]
[376391107,1753962633019,-248.0,0.0001887,2]
[376391110,1753962633028,-300.0,0.0001887,2]
[376391113,1753962633039,-300.0,0.0001887,2]
[376391115,1753962633049,-300.0,0.0001887,2]
[376391117,1753962633058,-1200.0,0.0001887,2]
[376391119,1753962633067,-500.0,0.0001887,2]
[376391121,1753962633077,-500.0,0.0001887,2]
[376391123,1753962633086,-500.0,0.0001887,2]
[376391125,1753962633096,-377.24601794,0.0001887,2]
[376391126,1753962633105,-500.0,0.0001887,2]
[376391127,1753962633115,-610.63119762,0.0001887,2]
[376391128,1753962633125,-500.0,0.0001887,2]
[376391129,1753962633135,-500.0,0.0001887,2]
[376391130,1753962633144,-440.50508413,0.0001887,2]
[376391131,1753962633153,-607.02316454,0.0001887,2]
[376391132,1753962633162,-500.0,0.0001887,2]
[376391133,1753962633172,-500.0,0.0001887,2]
[376391134,1753962633181,-483.31098175,0.0001887,2]
[376391135,1753962633190,-502.73276651,0.0001887,2]
[376391136,1753962633200,-500.0,0.0001887,2]
[376391137,1753962633209,-500.0,0.0001887,2]
[376391138,1753962633218,-500.0,0.0001887,2]
[376391139,1753962633227,-500.0,0.0001887,2]
[376391140,1753962633238,-586.04333938,0.0001887,2]
[376391141,1753962633247,-500.0,0.0001887,2]
[376391142,1753962633257,-500.0,0.0001887,2]
[376391143,1753962633266,-500.0,0.0001887,2]
[376391144,1753962633275,-500.0,0.0001887,2]
[376391145,1753962633285,-500.0,0.0001887,2]
[376391146,1753962633295,-159.46316755,0.0001887,2]
[376391147,1753962633304,-500.0,0.0001887,2]
[376391148,1753962633314,-500.0,0.0001887,2]
[376391149,1753962633323,-500.0,0.0001887,2]
[376391150,1753962633332,-226.45470567,0.0001887,2]
[376391151,1753962633342,-500.0,0.0001887,2]
[376391152,1753962633352,-500.0,0.0001887,2]
[376391153,1753962633361,-500.0,0.0001887,2]
[376391154,1753962633371,-500.0,0.0001887,2]
[376391155,1753962633380,-500.0,0.0001887,2]
[376391156,1753962633390,-500.0,0.0001887,2]
[376391157,1753962633400,-500.0,0.0001887,2]
[376391158,1753962633410,-500.0,0.0001887,2]
[376391159,1753962633419,-500.0,0.0001887,2]
[376391160,1753962633429,-500.0,0.0001887,2]
[376391161,1753962633438,-500.0,0.0001887,2]
[376391162,1753962633448,-500.0,0.0001887,2]
[376391163,1753962633457,-500.0,0.0001887,2]
[376391164,1753962633467,-613.63296914,0.0001887,2]
[376391165,1753962633477,-500.0,0.0001887,2]
[376391166,1753962633487,-500.0,0.0001887,2]
[376391167,1753962633497,-500.0,0.0001887,2]
[376391168,1753962633507,-50000.0,0.00018871,2]
[376391169,1753962633520,-1200.0,0.00018872,2]
[376391170,1753962633535,-500.0,0.00018872,2]
[376391171,1753962633546,-290.5996531,0.00018874,2]
[376391172,1753962633557,-920.62007429,0.00018874,2]
[376391173,1753962633566,-920.62007429,0.00018874,2]
[376391174,1753962633575,-920.62007429,0.00018874,2]
[376391175,1753962633585,-920.62007429,0.00018874,2]
[376391176,1753962633596,-920.62007429,0.00018874,2]
[376391177,1753962633606,-920.62007429,0.00018874,2]
[376391178,1753962633617,-920.62007429,0.00018874,2]
[376391179,1753962633627,-920.62007429,0.00018874,2]
[376391180,1753962633636,-920.62007429,0.00018874,2]
[376391181,1753962633645,-920.62007429,0.00018874,2]
[376391182,1753962633655,-920.62007429,0.00018874,2]
[376391183,1753962633665,-920.62007429,0.00018874,2]
[376391184,1753962633676,-920.62007429,0.00018874,2]
[376391185,1753962633686,-920.62007429,0.00018874,2]
[376391186,1753962633696,-920.62007429,0.00018874,2]
[376391187,1753962633705,-920.62007429,0.00018874,2]
[376391188,1753962633715,-920.62007429,0.00018874,2]
[376391189,1753962633724,-951.30741011,0.00018874,2]
[376391190,1753962633734,-951.30741011,0.00018874,2]
[376391191,1753962633746,-951.30741011,0.00018874,2]
[376391192,1753962633755,-951.30741011,0.00018874,2]
[376391193,1753962633878,-951.30741011,0.00018874,2]
[376391194,1753962633888,-951.30741011,0.00018874,2]
[376391195,1753962633897,-166.8108162,0.00018874,2]
[376391196,1753962633910,-784.49659391,0.00018874,2]
[376391197,1753962633919,-734.47582429,0.00018874,2]
[376391198,1753962633931,-216.83158582,0.00018874,2]
[376391199,1753962633940,-951.30741011,0.00018874,2]
[376391200,1753962633949,-17986.00837677,0.00018875,2]
[376391201,1753962635563,581.46843272,0.00018771,2]
[376391227,1753962638982,-500.0,0.0001887,2]
[376391229,1753962638992,-500.0,0.0001887,2]
[376391231,1753962639001,-500.0,0.0001887,2]
[376391233,1753962639012,-500.0,0.0001887,2]
[376391235,1753962639021,-500.0,0.0001887,2]
[376391237,1753962639031,-500.0,0.0001887,2]
[376391239,1753962639040,-500.0,0.0001887,2]
[376391241,1753962639049,-500.0,0.0001887,2]
[376391243,1753962639058,-500.0,0.0001887,2]
[376391245,1753962639068,-500.0,0.0001887,2]
[376391247,1753962639076,-6709.05962282,0.00018875,2]
[376391249,1753962639088,-1238.74465607,0.00018875,2]
[376391253,1753962639107,-7652.94638552,0.00018875,2]
[376391269,1753962639249,-2566.46224793,0.00018875,2]
[376391272,1753962639261,-6823.55629151,0.00018875,2]
[376391277,1753962639303,-7320.692546,0.00018875,2]
[376392013,1753962646592,-14087.994,0.00018875,2]
[376392015,1753962646606,-845.61652906,0.00018875,2]
[376392017,1753962646618,-465.24704386,0.00018875,2]
[376392020,1753962646630,-371.73847282,0.00018875,2]
[376392022,1753962646641,-315.56071227,0.00018875,2]
[376392024,1753962646655,-19319.85594549,0.00018875,2]
[376392032,1753962646725,-6630.0315086,0.00018875,2]
[376392034,1753962646736,-6921.74353709,0.00018875,2]
[376392350,1753962657186,-170.82020959,0.0001887,2]
[376392353,1753962781856,1298.5434191,0.00017931,2]
[376392354,1753962804977,2331.31182504,0.000188,2]
[376392355,1753962826105,508.78487863,0.00018774,2]
[376392356,1753962826958,2657.34113926,0.00017873,2]
[376392357,1753962826979,10000.0,0.00017873,2]
[376392358,1753962827001,10000.0,0.00017873,2]
[376392359,1753962827022,2242.65886074,0.00017873,2]
[376392360,1753962833745,7757.34113926,0.00018775,2]
[376392361,1753962833904,10000.0,0.00018775,2]
[376392362,1753962833926,10000.0,0.00018775,2]
[376392363,1753962833949,10000.0,0.00018775,2]
[376392364,1753962833970,10000.0,0.00018775,2]
[376392365,1753962835875,-203.24424097,0.00018775,2]
[376392366,1753962839510,-402.36392349,0.00018775,2]
[376392367,1753962842849,-229.86758974,0.00018775,2]
[376392368,1753962928596,344.612079,0.00017873,2]
[376392370,1753963145356,2690.69795738,0.00018675,2]
[376392373,1753963178021,3029.42570056,0.00018675,2]
[376392375,1753963230308,270.366908,0.00013699,2]
[376392377,1753963393408,-1110.3,0.00018765,3]